bitfinex-derivatives/quotes_SOLF0:USTF0_20250903
["timestamp","ask_amount","ask_price","bid_price","bid_amount"]
[1756858547245,0.03627973,209.79,209.69,7.89]
[1756858547441,7.63,209.77,209.63,148.17109215]
[1756858547645,7.63,209.77,209.64,7.89]
[1756858547841,26.48,209.76,209.64,7.89]
[1756858548038,0.03599249,209.73,209.64,7.89]
[1756858552155,7.63,209.72,209.56,7.89]
[1756858552451,7.63,209.72,209.58,7.89]
[1756858552853,0.03572957,209.66,209.58,7.89]
[1756858556554,0.03572957,209.66,209.59,3.84341909]
[1756858556855,7.63,209.72,209.6,7.89]
[1756858557256,0.03187574,209.63,209.56,7.89]
[1756858557557,7.63,209.72,209.58,7.89]
[1756858557746,0.03316485,209.62,209.54,7.89]
[1756858557950,7.63,209.72,209.56,7.89]
[1756858558147,0.03018544,209.6,209.53,159.56979264]
[1756858558347,0.03018544,209.6,209.55,7.89]
[1756858558653,0.03010951,209.6,209.57,7.89]
[1756858558861,0.03010951,209.6,209.54,7.89]
[1756858559048,0.03010951,209.6,209.56,7.89]
[1756858559353,0.03010951,209.6,209.54,7.89]
[1756858559555,0.03010951,209.6,209.56,7.89]
[1756858559757,0.03010951,209.6,209.54,7.89]
[1756858560060,0.03010951,209.6,209.55,3.84362057]
[1756858560248,7.63,209.69,209.57,7.89]
[1756858560453,7.63,209.75,209.57,7.89]
[1756858561668,7.66224635,209.68,209.57,7.89]
[1756858562060,0.03224635,209.68,209.58,3.82193692]
[1756858562262,0.03224635,209.68,209.59,3.82193692]
[1756858562458,7.63,209.73,209.6,7.89]
[1756858562668,0.03100439,209.66,209.62,7.89]
[1756858563160,293.68,209.77,209.62,7.89]
[1756858563360,0.03383727,209.66,209.63,3.81991626]
[1756858563670,293.68,209.77,209.61,7.89]
[1756858563871,0.03228574,209.67,209.62,3.81950608]
[1756858564064,0.03228574,209.67,209.55,66.8042]
[1756858564065,0.03228574,209.67,209.61,7.89]
[1756858564262,7.63,209.74,209.61,7.89]
[1756858564468,0.03420001,209.66,209.61,7.89]
[1756858564771,0.03420001,209.66,209.59,7.89]
[1756858564973,0.03420001,209.66,209.6,3.82211367]
[1756858565173,0.03420001,209.66,209.59,7.89]
[1756858565574,0.03420001,209.66,209.61,7.89]
[1756858565774,0.03420001,209.66,209.63,7.89]
[1756858565975,0.03420001,209.66,209.58,7.89]
[1756858566175,0.03420001,209.66,209.62,7.89]
[1756858566377,0.03420001,209.66,209.63,3.82303114]
[1756858566570,0.03420001,209.66,209.65,7.89]
[1756858566775,7.63,209.76,209.65,7.89]
[1756858567674,7.63,209.81,209.67,7.89]
[1756858567874,7.63,209.81,209.69,7.89]
[1756858568078,7.63,209.81,209.7,3.82590875]
[1756858568273,7.63,209.81,209.71,3.82590875]
[1756858568575,7.63,209.81,209.73,0.03060705]
[1756858568968,7.63,209.81,209.73,7.92060705]
[1756858569172,66.04,209.87,209.73,7.92060705]
[1756858569373,7.63,209.86,209.73,7.92060705]
[1756858569570,7.63,209.86,209.73,7.89]
[1756858569780,7.63,209.86,209.77,0.03302266]
[1756858570173,7.63,209.86,209.78,3.83366276]
[1756858570368,7.63,209.86,209.77,0.03302266]
[1756858570576,7.63,209.86,209.78,3.83483597]
[1756858570775,7.63,209.86,209.79,3.83483597]
[1756858570977,7.63,209.86,209.77,0.03302266]
[1756858571276,7.63,209.86,209.78,3.83545968]
[1756858571476,7.63,209.86,209.77,0.03302266]
[1756858571776,7.63,209.86,209.78,3.83743543]
[1756858571977,7.63,209.86,209.77,0.03302266]
[1756858572177,7.63,209.86,209.78,3.83572367]
[1756858572376,7.63,209.86,209.79,3.8378614]
[1756858572571,7.63,209.86,209.77,0.03302266]
[1756858572778,7.63,209.86,209.78,3.83847278]
[1756858573072,7.63,209.86,209.77,0.03302266]
[1756858573674,7.63,209.86,209.78,3.84085495]
[1756858573878,7.63,209.86,209.77,0.03302266]
[1756858574079,7.63,209.86,209.78,3.84277936]
[1756858574280,7.63,209.86,209.77,0.03302266]
[1756858574481,7.63,209.86,209.78,3.84332828]
[1756858574678,7.63,209.86,209.77,0.03302266]
[1756858574882,7.63,209.86,209.78,3.8430111]
[1756858575184,7.63,209.86,209.77,0.03302266]
[1756858575381,7.63,209.86,209.78,3.84476169]
[1756858575585,7.63,209.86,209.77,0.03302266]
[1756858575774,7.63,209.86,209.78,3.84702409]
[1756858575977,7.63,209.86,209.77,0.03302266]
[1756858576180,7.63,209.86,209.78,3.84589804]
[1756858576380,7.63,209.86,209.77,0.03302266]
[1756858576581,7.63,209.86,209.78,3.84920665]
[1756858576781,7.63,209.86,209.77,0.03302266]
[1756858577686,7.63,209.86,209.78,3.85084818]
[1756858577884,7.95,209.91,209.8,7.75]
[1756858578182,7.95,209.91,209.81,3.85084818]
[1756858578382,7.95,209.91,209.82,3.85084818]
[1756858578687,7.95,209.91,209.83,0.03328793]
[1756858579583,7.95,209.91,209.84,3.85756686]
[1756858579782,7.95,209.91,209.83,0.03328793]
[1756858579982,7.95,209.91,209.84,3.85719908]
[1756858580281,7.95,209.91,209.83,0.03328793]
[1756858580282,7.95,209.91,209.85,3.86152936]
[1756858580486,7.95,209.91,209.83,0.03328793]
[1756858580680,7.95,209.91,209.84,3.86189191]
[1756858580880,7.95,209.91,209.85,3.86189191]
[1756858581080,7.95,209.91,209.83,0.03328793]
[1756858581282,7.95,209.91,209.84,3.86463397]
[1756858581478,7.95,209.91,209.85,3.86463397]
[1756858581786,7.95,209.91,209.86,11.61463397]
[1756858582081,7.95,209.98,209.87,3.86463397]
[1756858582281,7.95,209.98,209.88,3.86463397]
[1756858582486,7.95,209.98,209.89,3.86463397]
[1756858582691,7.95,209.98,209.91,0.03641757]
[1756858583486,7.95,209.98,209.92,3.85870342]
[1756858583786,7.95,209.98,209.91,0.03641757]
[1756858583983,7.95,209.98,209.92,3.85860145]
[1756858584185,7.95,209.98,209.91,0.03641757]
[1756858584489,63.2,210.04,209.91,0.03641757]
[1756858584690,7.95,210.03,209.92,7.75]
[1756858584886,7.95,210.03,209.93,3.85485553]
[1756858585188,7.95,210.03,209.95,0.03087184]
[1756858585891,7.95,210.03,209.87,7.75]
[1756858585892,7.98128593,210.01,209.83,7.75]
[1756858586088,7.95,209.99,209.84,3.85677059]
[1756858586285,7.95,209.99,209.85,3.85677059]
[1756858586486,7.95,209.99,209.83,7.75]
[1756858586692,7.95,209.99,209.84,3.85604917]
[1756858586892,7.95,209.99,209.83,7.75]
[1756858587087,0.03485722,209.93,209.84,3.85614039]
[1756858587389,0.03485722,209.93,209.83,7.75]
[1756858587590,0.03485722,209.93,209.84,3.8557197]
[1756858587788,0.03485722,209.93,209.83,7.75]
[1756858588191,7.95,209.92,209.78,7.75]
[1756858588496,7.95,209.92,209.79,3.85813647]
[1756858588791,0.03368713,209.87,209.8,3.85813647]
[1756858589097,0.03368713,209.87,209.78,7.75]
[1756858589293,0.03368713,209.87,209.79,3.85947244]
[1756858589494,0.03368713,209.87,209.8,3.85947244]
[1756858589788,0.03368713,209.87,209.78,7.75]
[1756858589991,7.95,210.04,209.84,3.90542724]
[1756858590191,7.95,210.04,209.86,7.75]
[1756858590494,7.95,210.04,209.87,3.86207094]
[1756858590683,7.95,210.04,209.89,7.75]
[1756858591084,7.95,210.04,209.94,0.03663074]
[1756858595688,7.95,210.04,209.94,7.78663074]
[1756858595992,7.95,210.11,209.94,7.78663074]
[1756858596397,7.95,210.11,209.94,7.75]
[1756858596787,7.95,210.11,210.0,0.03345072]
[1756858606102,29.00266634,210.11,210.0,0.03345072]
[1756858606305,7.77,210.07,210.0,0.03345072]
[1756858606710,126.62,210.06,210.0,0.03345072]
[1756858606899,7.77,210.05,210.0,0.03345072]
[1756858607103,126.62,210.06,210.0,0.03345072]
[1756858608000,7.77,210.05,210.0,0.03345072]
[1756858608514,7.77,210.04,210.0,0.03345072]
[1756858608701,0.03114925,210.08,210.0,0.03345072]
[1756858610706,0.03114925,210.08,210.01,7.96]
[1756858611013,7.77,210.07,210.0,0.03345072]
[1756858613805,8.25,210.07,210.0,0.03345072]
[1756858616103,7.77,210.07,210.0,0.03345072]
[1756858617014,28.82266634,210.07,210.0,0.03345072]
[1756858618015,22.05,210.05,209.85,7.96]
[1756858618220,7.77,210.03,209.87,7.96]
[1756858618421,125.94,210.02,209.88,3.88528766]
[1756858618610,125.94,210.02,209.87,7.96]
[1756858618815,7.77,210.03,209.89,7.96]
[1756858619110,125.9,210.02,209.89,7.96]
[1756858619310,0.03203124,209.98,209.89,7.96]
[1756858619716,0.03203124,209.98,209.91,7.96]
[1756858620014,0.03203124,209.98,209.84,12.08618614]
[1756858620015,0.03203124,209.98,209.93,7.96]
[1756858620214,293.48,210.04,209.93,7.96]
[1756858620412,293.48,210.04,209.94,3.88640013]
[1756858620611,7.77,210.03,209.93,7.96]
[1756858620921,7.77,210.03,209.94,3.88732502]
[1756858621113,7.77,210.03,209.93,7.96]
[1756858621114,0.03146021,210.0,209.93,7.96]
[1756858621316,0.03146021,210.0,209.94,3.8875104]
[1756858621520,0.03146021,210.0,209.93,7.96]
[1756858625126,7.80146021,210.0,209.87,7.96]
[1756858625425,7.80146021,210.0,209.88,3.89722679]
[1756858625426,7.77,210.0,209.88,3.89722679]
[1756858625626,7.77,210.0,209.89,3.89722679]
[1756858625826,7.77,210.0,209.87,7.96]
[1756858626126,7.77,209.96,209.82,7.96]
[1756858626424,91.84,209.95,209.83,3.90160586]
[1756858626624,91.84,209.95,209.84,3.90160586]
[1756858626820,91.84,209.95,209.82,7.96]
[1756858627128,0.03211907,209.91,209.84,7.96]
[1756858627428,0.03211907,209.91,209.85,3.90240527]
[1756858627627,0.03211907,209.91,209.86,3.90240527]
[1756858627829,0.03211907,209.91,209.81,7.96]
[1756858628018,0.03211907,209.91,209.83,7.96]
[1756858628328,0.03211907,209.91,209.84,3.90197994]
[1756858628524,0.03211907,209.91,209.85,3.90197994]
[1756858628725,0.03211907,209.91,209.83,7.96]
[1756858628924,0.03211907,209.91,209.85,7.96]
[1756858629229,7.77,210.06,209.86,6.77266634]
[1756858629418,7.77,210.03,209.87,7.96]
[1756858630428,7.77,210.03,209.93,0.03261635]
[1756858630924,22.05,210.03,209.79,11.91611357]
[1756858631130,22.05,209.97,209.79,7.96]
[1756858631325,24.96328468,210.02,209.79,7.96]
[1756858631326,6.77266634,209.94,209.79,7.96]
[1756858631532,21.81,209.93,209.72,7.83]
[1756858631732,21.81,209.93,209.74,7.83]
[1756858631925,7.53,209.91,209.74,7.83]
[1756858632430,54.94,209.9,209.74,7.83]
[1756858632631,7.53,209.89,209.74,7.83]
[1756858632928,307.86266634,209.89,209.74,7.83]
[1756858633226,7.53,209.87,209.66,7.83]
[1756858633423,7.53,209.87,209.69,7.83]
[1756858633634,126.28,209.86,209.71,7.83]
[1756858633829,126.28,209.86,209.73,7.83]
[1756858634021,7.53,209.87,209.73,7.83]
[1756858634227,126.24,209.86,209.73,7.83]
[1756858637041,125.98,209.85,209.73,7.83]
[1756858637535,7.53,209.84,209.73,7.83]
[1756858640044,7.53,209.84,209.66,3.84820784]
[1756858640243,7.53,209.84,209.67,7.83]
[1756858641645,96.77,209.84,209.69,7.83]
[1756858643049,7.53,209.83,209.61,7.83]
[1756858643250,7.53,209.78,209.61,7.83]
[1756858644444,0.03286837,209.72,209.61,7.83]
[1756858646643,7.53,209.71,209.61,7.83]
[1756858647238,293.76,209.7,209.49,7.83]
[1756858647438,293.76,209.7,209.44,5.2748181]
[1756858647439,14.30266634,209.69,209.51,7.83]
[1756858647644,7.53,209.67,209.51,7.83]
[1756858647848,0.03280675,209.62,209.51,7.83]
[1756858648042,7.53,209.61,209.51,7.83]
[1756858648448,7.53,209.61,209.45,7.83]
[1756858648641,94.5,209.6,209.47,7.83]
[1756858649150,0.03500149,209.56,209.47,7.83]
[1756858651752,0.03500149,209.56,209.51,7.83]
[1756858652248,0.03500149,209.56,209.46,7.83]
[1756858652453,0.03500149,209.56,209.48,7.83]
[1756858652745,66.19,209.65,209.48,7.83]
[1756858652746,7.53,209.64,209.48,7.83]
[1756858652950,0.03209638,209.54,209.48,7.83]
[1756858653249,7.53,209.6,209.48,7.83]
[1756858653650,0.03488378,209.53,209.45,7.83]
[1756858655449,0.03488378,209.53,209.46,4.2964]
[1756858655651,0.03488378,209.53,209.47,7.83]
[1756858660850,7.56488378,209.53,209.41,4.2974]
[1756858661057,7.56488378,209.53,209.4,7.83]
[1756858661251,7.53,209.53,209.4,7.83]
[1756858662158,7.53,209.53,209.4,12.1276]
[1756858662554,7.53,209.53,209.41,7.31]
[1756858663458,11.64319651,209.53,209.41,7.31]
[1756858664163,7.53,209.53,209.41,7.31]
[1756858664357,19.15,209.53,209.41,7.31]
[1756858664558,7.53,209.53,209.41,7.31]
[1756858665162,7.53,209.53,209.41,11.6074]
[1756858665556,7.53,209.53,209.41,7.31]
[1756858668667,7.53,209.53,209.41,11.6074]
[1756858670266,7.53,209.53,209.42,11.12447864]
[1756858670460,7.53,209.53,209.42,7.31]
[1756858672276,7.53,209.53,209.43,3.81704791]
[1756858672572,7.53,209.53,209.42,7.31]
[1756858672768,7.53,209.53,209.43,3.81674516]
[1756858672974,7.53,209.53,209.42,7.31]
[1756858673180,7.53,209.53,209.43,3.81657332]
[1756858673473,7.53,209.53,209.42,7.31]
[1756858673774,7.53,209.53,209.43,3.81918329]
[1756858673967,7.53,209.53,209.42,7.31]
[1756858674275,7.53,209.53,209.43,3.81918329]
[1756858674471,7.53,209.53,209.42,7.31]
[1756858674675,7.53,209.53,209.43,3.82297486]
[1756858674876,7.53,209.53,209.42,7.31]
[1756858675176,7.53,209.53,209.43,3.82298051]
[1756858675369,7.53,209.53,209.42,7.31]
[1756858675575,7.53,209.53,209.43,3.82667263]
[1756858675875,7.53,209.53,209.42,7.31]
[1756858676176,7.53,209.53,209.43,3.82617692]
[1756858676372,7.53,209.53,209.42,7.31]
[1756858676573,7.53,209.53,209.43,3.82794506]
[1756858676870,7.53,209.53,209.42,7.31]
[1756858677172,7.53,209.53,209.43,3.82982248]
[1756858677379,7.53,209.53,209.44,3.82893403]
[1756858677567,7.53,209.53,209.42,7.31]
[1756858677768,7.53,209.53,209.43,8.12608406]
[1756858677973,7.53,209.53,209.44,3.82898406]
[1756858678175,14.28,209.66,209.45,11.13898406]
[1756858678370,7.45,209.64,209.47,7.31]
[1756858678576,86.07,209.64,209.49,7.31]
[1756858678776,86.07,209.64,209.5,3.82898406]
[1756858678973,90.18319651,209.64,209.49,7.31]
[1756858679776,11.56319651,209.64,209.49,7.31]
[1756858679980,7.45,209.62,209.5,3.82945307]
[1756858680178,7.45,209.62,209.51,3.82945307]
[1756858680481,7.45,209.62,209.49,7.31]
[1756858680781,7.45,209.62,209.51,7.31]
[1756858681082,7.45,209.62,209.52,3.83208491]
[1756858681280,0.03113165,209.59,209.53,3.83208491]
[1756858681581,0.03113165,209.59,209.54,11.14833842]
[1756858681782,0.03113165,209.59,209.55,3.83803188]
[1756858681982,0.03113165,209.59,209.52,7.31]
[1756858682286,0.03113165,209.59,209.53,3.8380101]
[1756858682484,0.03113165,209.59,209.55,7.31]
[1756858682778,0.03113165,209.59,209.57,7.31]
[1756858682974,0.03113165,209.59,209.58,11.1480101]
[1756858683379,0.03113165,209.59,209.58,11.6280101]
[1756858684283,7.45,209.7,209.58,11.6280101]
[1756858684284,7.45,209.7,209.58,8.6119101]
[1756858684479,7.45,209.7,209.6,7.31]
[1756858684679,7.45,209.7,209.61,3.8380101]
[1756858684883,7.45,209.7,209.62,3.8380101]
[1756858685085,7.45,209.7,209.63,3.8380101]
[1756858685377,7.45,209.7,209.6,7.31]
[1756858685583,7.45,209.78,209.64,7.34091085]
[1756858685779,7.45,209.76,209.64,7.34091085]
[1756858685986,7.45,209.76,209.64,7.31]
[1756858686385,7.45,209.76,209.68,0.03542963]
[1756858686982,7.45,209.76,209.69,3.84520556]
[1756858687182,7.45,209.76,209.68,0.03542963]
[1756858688783,124.46,209.75,209.68,0.03542963]
[1756858689591,7.45,209.76,209.68,0.03542963]
[1756858699088,14.28,209.9,209.68,0.03542963]
[1756858699089,7.57,209.81,209.69,7.6]
[1756858699686,7.57,209.81,209.73,7.63081118]
[1756858701087,7.57,209.81,209.73,0.03081118]
[1756858701399,0.03282077,209.79,209.73,0.03081118]
[1756858702093,7.57,209.78,209.73,0.03081118]
[1756858702292,0.03282077,209.79,209.73,0.03081118]
[1756858702488,7.57,209.78,209.73,0.03081118]
[1756858702687,0.03282077,209.79,209.73,0.03081118]
[1756858702895,7.57,209.78,209.73,0.03081118]
[1756858703995,8.05,209.78,209.73,0.03081118]
[1756858704899,0.48,209.78,209.73,0.03081118]
[1756858705094,7.57,209.77,209.73,0.03081118]
[1756858705495,117.3,209.78,209.73,0.03081118]
[1756858705696,7.57,209.77,209.73,0.03081118]
[1756858707797,7.57,209.77,209.61,7.6]
[1756858707999,7.57,209.75,209.61,7.6]
[1756858709108,7.57,209.69,209.61,7.6]
[1756858711502,4.11319651,209.67,209.5,182.72682481]
[1756858711708,7.57,209.66,209.5,190.32682481]
[1756858712000,4.11319651,209.67,209.5,190.32682481]
[1756858712001,0.03444125,209.6,209.5,190.32682481]
[1756858712206,7.57,209.59,209.5,190.32682481]
[1756858712401,7.57,209.59,209.5,182.72682481]
[1756858713199,7.57,209.59,209.46,7.6]
[1756858713816,0.0325432,209.55,209.46,7.6]
[1756858715805,0.0325432,209.55,209.4,4.2975]
[1756858715806,7.57,209.54,209.4,7.6]
[1756858716413,0.03550144,209.49,209.4,7.6]
[1756858718208,7.57,209.48,209.35,7.6]
[1756858718710,0.03252227,209.44,209.35,7.6]
[1756858721110,0.03252227,209.44,209.37,7.6]
[1756858722713,0.03252227,209.44,209.38,4.298]
[1756858723111,0.03252227,209.44,209.37,66.8631]
[1756858723411,0.03252227,209.44,209.38,7.46]
[1756858724107,0.03252227,209.44,209.4,4.2977]
[1756858724312,0.03252227,209.44,209.41,7.46]
[1756858724713,0.03252227,209.44,209.35,7.46]
[1756858724909,0.03252227,209.44,209.37,7.46]
[1756858725306,0.03252227,209.44,209.37,11.7582]
[1756858725510,0.03252227,209.44,209.37,7.46]
[1756858728111,0.03252227,209.44,209.38,4.2981]
[1756858730816,0.03252227,209.44,209.37,7.46]
[1756858735522,0.03252227,209.44,209.33,301.34]
[1756858735722,0.03252227,209.44,209.33,7.46]
[1756858735927,7.57,209.43,209.33,7.46]
[1756858738129,7.57,209.43,209.32,4.2993]
[1756858738330,7.57,209.43,209.29,11.7598]
[1756858738534,7.57,209.47,209.29,11.7598]
[1756858738736,0.03065142,209.38,209.29,11.7598]
[1756858739236,0.03065142,209.38,209.31,7.46]
[1756858739633,7.57,209.44,209.31,7.46]
[1756858739831,0.03271696,209.37,209.31,7.46]
[1756858742739,7.57,209.48,209.4,7.46]
[1756858742935,7.57,209.48,209.42,0.0318507]
[1756858754749,308.24,209.58,209.42,0.0318507]
[1756858754947,293.96,209.58,209.43,11.28457736]
[1756858755145,7.32,209.57,209.43,7.49]
[1756858755347,7.32,209.57,209.48,0.03372606]
[1756858757053,7.32,209.57,209.49,3.80487522]
[1756858757256,7.32,209.57,209.48,0.03372606]
[1756858757750,7.32,209.57,209.48,7.52372606]
[1756858758059,7.32,209.61,209.5,7.49]
[1756858758653,7.32,209.61,209.53,0.03024556]
[1756858759757,7.32,209.61,209.53,7.52024556]
[1756858760752,7.97134123,209.69,209.53,7.52024556]
[1756858760955,64.0,209.68,209.53,7.52024556]
[1756858761156,64.0,209.68,209.54,3.70039114]
[1756858761360,64.0,209.68,209.58,0.03066447]
[1756858762054,7.32,209.68,209.59,7.49]
[1756858762551,123.6,209.71,209.59,7.49]
[1756858762751,123.6,209.71,209.6,3.69253745]
[1756858762952,123.6,209.71,209.61,7.49]
[1756858763147,123.6,209.71,209.63,0.03137986]
[1756858764957,7.32,209.76,209.64,7.49]
[1756858765157,130.9,209.76,209.64,7.49]
[1756858765653,130.9,209.76,209.68,0.03373416]
[1756858765856,7.32,209.76,209.68,0.03373416]
[1756858766050,123.58,209.79,209.68,0.03373416]
[1756858766252,7.32,209.8,209.69,7.49]
[1756858766453,130.9,209.8,209.69,7.49]
[1756858766654,7.32,209.79,209.6,25.78]
[1756858766854,7.32,209.79,209.72,0.03434501]
[1756858767054,7.32,209.79,209.65,7.49]
[1756858767259,7.32,209.79,209.73,0.03596854]
[1756858769861,7.8,209.79,209.73,0.03596854]
[1756858770456,0.03461966,209.78,209.59,7.49]
[1756858770662,14.12537494,209.77,209.59,7.49]
[1756858771063,7.32,209.71,209.59,7.49]
[1756858771260,7.32,209.69,209.59,7.49]
[1756858771664,0.03360895,209.66,209.53,7.49]
[1756858772066,7.32,209.69,209.53,7.49]
[1756858772363,0.03153928,209.62,209.53,7.49]
[1756858779568,0.03153928,209.62,209.54,4.2948]
[1756858779771,0.03153928,209.62,209.55,7.49]
[1756858781463,1.75832591,209.62,209.55,7.49]
[1756858781662,0.03153928,209.62,209.58,1.72678663]
[1756858781866,0.03153928,209.62,209.59,7.6]
[1756858782070,0.03153928,209.62,209.61,7.6]
[1756858783369,0.03153928,209.62,209.61,8.08]
[1756858786480,0.03153928,209.62,209.61,7.6]
[1756858790479,33.54807002,209.83,209.75,66.741]
[1756858790681,1259.84,210.16,209.83,66.7149]
[1756858790883,4.10802625,210.09,209.86,7.6]
[1756858791078,123.98,210.16,209.95,4.10802625]
[1756858791279,123.98,210.16,209.96,7.6]
[1756858791779,123.98,210.16,210.04,0.03456352]
[1756858792786,7.2,210.2,210.07,4.10802625]
[1756858792979,7.2,210.2,210.05,7.6]
[1756858793186,7.2,210.24,210.05,7.6]
[1756858793385,7.2,210.24,210.1,0.03170184]
[1756858793787,7.2,210.24,210.04,4.10802625]
[1756858793788,21.48,210.24,210.04,4.10802625]
[1756858794288,7.2,210.18,210.01,4.10802625]
[1756858794786,11.30802625,210.18,210.0,7.6]
[1756858795386,0.03084192,210.11,210.0,7.6]
[1756858795689,7.2,210.1,210.0,7.6]
[1756858796287,7.2,210.1,209.92,4.10802625]
[1756858796482,7.2,210.1,209.93,75.86]
[1756858796991,0.03325829,210.04,209.94,7.6]
[1756858797283,0.03325829,210.04,209.94,132.32]
[1756858798085,0.03325829,210.04,209.94,7.6]
[1756858803588,7.2,210.03,209.86,7.6]
[1756858804193,0.03468971,209.97,209.86,7.6]
[1756858806697,7.2,209.96,209.81,7.6]
[1756858807290,0.03407691,209.91,209.81,7.6]
[1756858807487,7.23407691,209.91,209.81,7.6]
[1756858807684,7.23407691,209.91,209.76,185.6854967]
[1756858808091,7.2,209.91,209.76,185.6854967]
[1756858808293,0.03291042,209.86,209.76,185.6854967]
[1756858810895,7.23291042,209.86,209.76,7.6]
[1756858812799,7.23291042,209.86,209.65,7.37]
[1756858813193,4.10802625,209.81,209.65,7.37]
[1756858813495,0.03105129,209.78,209.65,7.37]
[1756858813997,0.03655966,209.74,209.65,7.37]
[1756858840016,0.03655966,209.74,209.67,7.37]
[1756858840317,7.48,209.81,209.67,7.37]
[1756858840518,0.03149603,209.73,209.67,7.37]
[1756858841212,0.03149603,209.73,209.67,4.292]
[1756858841412,0.03149603,209.73,209.68,7.33]
[1756858841808,0.03149603,209.73,209.69,4.2918]
[1756858842007,7.48,209.81,209.65,6.79262783]
[1756858842008,7.23,209.88,209.7,7.33]
[1756858842319,7.23,209.92,209.71,7.33]
[1756858842513,7.23,209.92,209.73,7.33]
[1756858843117,7.23,209.92,209.8,0.03558289]
[1756858843317,7.23,209.92,209.81,7.33]
[1756858843919,7.23,209.92,209.84,0.03360183]
[1756858846313,7.26525313,209.9,209.73,7.33]
[1756858846614,7.23,209.9,209.73,7.33]
[1756858847415,0.03649091,209.84,209.73,7.33]
[1756858850210,7.23,209.83,209.68,7.33]
[1756858850820,0.03229079,209.78,209.68,7.33]
[1756858851120,7.26229079,209.78,209.68,7.33]
[1756858856217,7.26229079,209.78,209.61,123.48]
[1756858856218,7.26229079,209.78,209.63,7.33]
[1756858856622,7.23,209.78,209.63,7.33]
[1756858856823,0.03173664,209.73,209.63,7.33]
[1756858860521,7.23,209.72,209.63,7.33]
[1756858862124,0.03173664,209.73,209.63,7.33]
[1756858864528,7.23,209.72,209.63,7.33]
[1756858864932,7.23,209.72,209.55,7.33]
[1756858865123,12.51327664,209.72,209.55,7.33]
[1756858865327,7.23,209.7,209.55,7.33]
[1756858865527,0.03575138,209.66,209.55,7.33]
[1756858867127,7.26575138,209.66,209.55,7.33]
[1756858870633,14.05837921,209.66,209.49,7.33]
[1756858870835,14.05837921,209.66,209.58,0.03337269]
[1756858870836,19.34165585,209.66,209.58,0.03337269]
[1756858871027,7.23,209.64,209.58,0.03337269]
[1756858871232,7.26144683,209.64,209.58,0.03337269]
[1756858871527,7.74144683,209.64,209.58,0.03337269]
[1756858872431,7.83,209.62,209.49,7.33]
[1756858872733,7.83,209.62,209.4,7.55]
[1756858873530,0.03090393,209.53,209.4,7.55]
[1756858873935,33.41,209.57,209.4,7.55]
[1756858874127,0.03416812,209.49,209.4,7.55]
[1756858878237,0.03416812,209.49,209.4,11.8476]
[1756858878435,0.03416812,209.49,209.41,7.55]
[1756858879033,0.03416812,209.49,209.43,7.55]
[1756858883436,0.03416812,209.49,209.37,7.55]
[1756858883739,7.83,209.49,209.37,7.55]
[1756858884242,0.03577599,209.45,209.37,7.55]
[1756858894646,6.79262783,209.61,209.35,368.39306192]
[1756858894647,7.83,209.64,209.41,7.55]
[1756858894949,7.87,209.62,209.45,7.55]